Workbook

Sheet 附表1-1
A1: 附表1-1
A2: 一般公共预算收入表
B3: 单位：万元
A4: 项目 | B4: 预算数
A5: 一、税收收入 | B5: 132230
A6: 增值税 | B6: 51260 | E6: 988753
A7: 企业所得税 | B7: 13800 | E7: 822672
A8: 个人所得税 | B8: 5000
A9: 资源税 | B9: 55 | E9: 988753
A10: 城市维护建设税 | B10: 19500 | E10: 822672
A11: 房产税 | B11: 6300
A12: 印花税 | B12: 3300
A13: 城镇土地使用税 | B13: 9500
A14: 土地增值税 | B14: 9000
A15: 车船税 | B15: 300
A16: 耕地占用税 | B16: 200
A17: 契税 | B17: 13915
A18: 环境保护税 | B18: 100
A19: 其他税收收入
A20: 二、非税收入 | B20: 12700
A21: 专项收入 | B21: 7800
A22: 其中：教育费附加收入 | B22: 6800
A23: 残疾人就业保障金收入 | B23: 1000
A24: 行政事业性收费收入 | B24: 400
A25: 罚没收入 | B25: 3500
A26: 国有资本经营收入
A27: 国有资源（资产）有偿使用收入 | B27: 1000
A28: 捐赠收入
A29: 政府住房基金收入
A30: 其他收入
A31: 合计 | B31: 144930

Sheet 附表1-2
A1: 附表1-2
A2: 一般公共预算支出表
B3: 单位：万元 | D3: 12.11 | F3: 12.22 | L3: 1.2
A4: 项目 | B4: 预算数 | F4: 科目编码 | G4: 科目（单位）名称 | H4: 合计 | L4: 科目编码 | M4: 科目（单位）名称 | N4: 合计
A5: 一、本级支出 | B5: 147145 | C5: 105429 | D5: 595734.14 | E5: =104401+13602 -> 118003 | F5: 201 | G5: 一般公共服务支出类合计 | H5: 596221.15 | I5: =F5-A5 ->  | J5: =H5-B5 -> 449075.7164 | K5: 75943 | L5: 201 | M5: 一般公共服务支出类合计 | N5: 643048.95 | O5: =L5-A5 ->  | P5: =N5-B5 -> 495903.5164 | R5: 717759 | T5: 201 | U5: 一般公共服务支出类合计 | V5: 659380.53 | W5: =B5-V5 -> -512235.0964 | X5: =T5-A5 -> 
A6: 一般公共服务支出 | B6: 19376
A7: 国防支出 | B7: 0
A8: 公共安全支出 | B8: 8953
A9: 教育支出 | B9: 14668
A10: 科学技术支出 | B10: 17713
A11: 文化旅游体育与传媒支出 | B11: 577
A12: 社会保障和就业支出 | B12: 20221
A13: 卫生健康支出 | B13: 9596 | D13: 7616.62 | F13: 20101 | G13: 人大事务款合计 | H13: 7616.62 | J13: -1978.88 | L13: 20101 | M13: 人大事务款合计 | N13: 7749.58 | P13: -1845.92 | T13: 20101 | U13: 人大事务款合计 | V13: 8475.47 | W13: 1120.03
A14: 节能环保支出 | B14: 5495 | D14: 3922.87 | F14: 2010101 | G14: 行政运行项合计 | H14: 3922.87 | J14: -1571.83 | K14: 750 | L14: 2010101 | M14: 行政运行项合计 | N14: 4041.81 | P14: -1452.89 | T14: 2010101 | U14: 行政运行项合计 | V14: 4680.94 | W14: 813.76
A15: 城乡社区支出 | B15: 28686
A16: 农林水支出 | B16: 4767
A17: 交通运输支出 | B17: 283
A18: 资源勘探工业信息等支出 | B18: 1549
A19: 商业服务业等支出 | B19: 1173
A20: 金融支出 | B20: 0
A21: 援助其他地区支出 | B21: 0
A22: 自然资源海洋气象等支出 | B22: 1119
A23: 住房保障支出 | B23: 6278
A24: 粮油物资储备支出 | B24: 0
A25: 灾害防治及应急管理支出 | B25: 746
A26: 预备费 | B26: 2800
A27: 其他支出 | B27: 45
A28: 债务还本支出 | B28: 0
A29: 债务付息支出 | B29: 3100
A30: 债务发行费用支出 | B30: 1
A31: 合计 | B31: =SUM(B6:B30) -> 147145 | C31: 105429 | D31: 595734.14 | E31: =104401+13602 -> 118003 | F31: 201 | G31: 一般公共服务支出类合计 | H31: 596221.15 | J31: 449076 | K31: 75943 | L31: 201 | M31: 一般公共服务支出类合计 | N31: 643048.95 | P31: 495904 | R31: 717759 | T31: 201 | U31: 一般公共服务支出类合计 | V31: 659380.53 | W31: -512235.0964
T32: 232 | U32: 债务付息支出类合计 | V32: 19998.00 | W32: -19998 | X32: 232
T33: 23203 | U33: 地方政府一般债务付息支出款合计 | V33: 19998.00 | W33: -19998 | X33: 23203
T34: 2320301 | U34: 地方政府一般债券付息支出项合计 | V34: 19998.00 | W34: -19998 | X34: 2320301

Sheet 附表1-3
A1: 附表1-3
A2: 一般公共预算本级支出表
C3: 单位：万元 | E3: 12.11 | G3: 12.22 | M3: 1.2
A4: 科目编码 | B4: 科目名称 | C4: 预算数 | G4: 科目编码 | H4: 科目（单位）名称 | I4: 合计 | M4: 科目编码 | N4: 科目（单位）名称 | O4: 合计
A5: 201 | B5: 一般公共服务 | C5: 19376 | D5: 105429 | E5: 595734.14 | F5: 118003 | G5: 201 | H5: 一般公共服务支出类合计 | I5: 596221.15 | J5: 0 | K5: 576845.48 | L5: 75943 | M5: 201 | N5: 一般公共服务支出类合计 | O5: 643048.95 | P5: 0 | Q5: 623673.28 | S5: 717759 | U5: 201 | V5: 一般公共服务支出类合计 | W5: 659380.53 | X5: -640004.86 | Y5: 0
A6: 20103 | B6: 政府办公厅(室)及相关机构事务 | C6: 11423 | E6: 7616.62 | G6: 20101 | H6: 人大事务款合计 | I6: 7616.62 | J6: -2 | K6: -3806.38 | M6: 20101 | N6: 人大事务款合计 | O6: 7749.58 | P6: -2 | Q6: -3673.42 | U6: 20101 | V6: 人大事务款合计 | W6: 8475.47 | X6: 2947.53 | Y6: -2
A7: 2010301 | B7: 行政运行 | C7: 7627 | E7: 3922.87 | G7: 2010101 | H7: 行政运行项合计 | I7: 3922.87 | J7: -200 | K7: -3703.82 | L7: 750 | M7: 2010101 | N7: 行政运行项合计 | O7: 4041.81 | P7: -200 | Q7: -3584.88 | U7: 2010101 | V7: 行政运行项合计 | W7: 4680.94 | X7: 2945.75 | Y7: -200
A8: 2010302 | B8: 一般行政管理事务 | C8: 1518 | E8: 136 | G8: 2010199 | H8: 其他人大事务支出项合计 | I8: 135.60 | J8: (103) | K8: -1383 | M8: 2010199 | N8: 其他人大事务支出项合计 | O8: 135.60 | P8: (103) | Q8: -1383 | U8: 2010199 | V8: 其他人大事务支出项合计 | W8: 135.60 | X8: 1382.63 | Y8: -103
A9: 2010350 | B9: 事业运行 | C9: 2278 | E9: 7617 | G9: 20101 | H9: 人大事务款合计 | I9: 7616.62 | J9: (1990249) | K9: 5338 | M9: 20101 | N9: 人大事务款合计 | O9: 7749.58 | P9: (1990249) | Q9: 5471 | U9: 20101 | V9: 人大事务款合计 | W9: 8475.47 | X9: -6197.28 | Y9: -1990249
A10: 20104 | B10: 发展与改革事务 | C10: 1044 | E10: 136 | G10: 2010199 | H10: 其他人大事务支出项合计 | I10: 135.60 | J10: 1990095 | K10: -909 | M10: 2010199 | N10: 其他人大事务支出项合计 | O10: 135.60 | P10: 1990095 | Q10: -909 | U10: 2010199 | V10: 其他人大事务支出项合计 | W10: 135.60 | X10: 908.57 | Y10: 1990095
A11: 2010401 | B11: 行政运行 | C11: 481
A12: 2010402 | B12: 一般行政管理事务 | C12: 113 | U12: 232 | V12: 债务付息支出类合计 | W12: 19998.00 | X12: -19885 | Y12: -2010170
A13: 2010499 | B13: 其他发展与改革事务支出 | C13: 450 | U13: 23203 | V13: 地方政府一般债务付息支出款合计 | W13: 19998.00 | X13: -19548 | Y13: -1987296
A14: 20105 | B14: 统计信息事务 | C14: 90 | U14: 2320301 | V14: 地方政府一般债券付息支出项合计 | W14: 19998.00 | X14: -19908 | Y14: 2300196
A15: 2010507 | B15: 专项普查活动 | C15: 90
A16: 20106 | B16: 财政事务 | C16: 750
A17: 2010601 | B17: 行政运行 | C17: 409
A18: 2010602 | B18: 一般行政管理事务 | C18: 331
A19: 2010604 | B19: 预算改革业务 | C19: 10
A20: 20107 | B20: 税收事务 | C20: 1946
A21: 2010702 | B21: 一般行政管理事务 | C21: 1946
A22: 20108 | B22: 审计事务 | C22: 140
A23: 2010802 | B23: 一般行政管理事务 | C23: 25
A24: 2010804 | B24: 审计业务 | C24: 115
A25: 20111 | B25: 纪检监察事务 | C25: 424
A26: 2011101 | B26: 行政运行 | C26: 66
A27: 2011102 | B27: 一般行政管理事务 | C27: 59
A28: 2011199 | B28: 其他纪检监察事务支出 | C28: 300
A29: 20113 | B29: 商贸事务 | C29: 1201
A30: 2011301 | B30: 行政运行 | C30: 546
A31: 2011308 | B31: 招商引资 | C31: 655
A32: 20129 | B32: 群众团体事务 | C32: 116
A33: 2012902 | B33: 一般行政管理事务 | C33: 6
A34: 2012906 | B34: 工会事务 | C34: 110
A35: 20132 | B35: 组织事务 | C35: 517
A36: 2013299 | B36: 其他组织事务支出 | C36: 517
A37: 20134 | B37: 统战事务 | C37: 3
A38: 2013402 | B38: 一般行政管理事务 | C38: 3
A39: 20138 | B39: 市场监督管理事务 | C39: 432
A40: 2013802 | B40: 一般行政管理事务 | C40: 254
A41: 2013804 | B41: 市场主体管理 | C41: 30
A42: 2013805 | B42: 市场秩序执法 | C42: 40
A43: 2013810 | B43: 质量基础 | C43: 40
A44: 2013816 | B44: 食品安全监管 | C44: 67
A45: 20140 | B45: 信访事务 | C45: 248
A46: 2014004 | B46: 信访业务 | C46: 248
A47: 20199 | B47: 其他一般公共服务支出 | C47: 1042
A48: 2019999 | B48: 其他一般公共服务支出 | C48: 1042
A49: 204 | B49: 公共安全支出 | C49: 8953
A50: 20402 | B50: 公安 | C50: 7617
A51: 2040202 | B51: 一般行政管理事务 | C51: 6658
A52: 2040220 | B52: 执法办案 | C52: 65
A53: 2040299 | B53: 其他公安支出 | C53: 894
A54: 20404 | B54: 检察 | C54: 59
A55: 2040402 | B55: 一般行政管理事务 | C55: 59
A56: 20405 | B56: 法院 | C56: 796
A57: 2040501 | B57: 行政运行 | C57: 100
A58: 2040502 | B58: 一般行政管理事务 | C58: 696
A59: 20406 | B59: 司法 | C59: 480
A60: 2040602 | B60: 一般行政管理事务 | C60: 423
A61: 2040604 | B61: 基层司法业务 | C61: 2
A62: 2040606 | B62: 律师管理 | C62: 20
A63: 2040607 | B63: 公共法律服务 | C63: 27
A64: 2040610 | B64: 社区矫正 | C64: 9
A65: 205 | B65: 教育支出 | C65: 14668
A66: 20502 | B66: 普通教育 | C66: 13544
A67: 2050201 | B67: 学前教育 | C67: 1014
A68: 2050202 | B68: 小学教育 | C68: 8519
A69: 2050203 | B69: 初中教育 | C69: 3813
A70: 2050299 | B70: 其他普通教育支出 | C70: 198
A71: 20507 | B71: 特殊教育 | C71: 3
A72: 2050701 | B72: 特殊学校教育 | C72: 3
A73: 20509 | B73: 教育费附加安排的支出 | C73: 1121
A74: 2050902 | B74: 农村中小学教学设施 | C74: 123
A75: 2050903 | B75: 城市中小学校舍建设 | C75: 27
A76: 2050904 | B76: 城市中小学教学设施 | C76: 856
A77: 2050999 | B77: 其他教育费附加安排的支出 | C77: 115
A78: 206 | B78: 科学技术支出 | C78: 17713
A79: 20601 | B79: 科学技术管理事务 | C79: 3182
A80: 2060101 | B80: 行政运行 | C80: 819
A81: 2060102 | B81: 一般行政管理事务 | C81: 2363
A82: 20604 | B82: 技术研究与开发 | C82: 1185
A83: 2060404 | B83: 科技成果转化与扩散 | C83: 120
A84: 2060499 | B84: 其他技术研究与开发支出 | C84: 1065
A85: 20605 | B85: 科技条件与服务 | C85: 726
A86: 2060502 | B86: 技术创新服务体系 | C86: 726
A87: 20699 | B87: 其他科学技术支出 | C87: 12620
A88: 2069999 | B88: 其他科学技术支出 | C88: 12620
A89: 207 | B89: 文化旅游体育与传媒支出 | C89: 577
A90: 20701 | B90: 文化和旅游 | C90: 337
A91: 2070199 | B91: 其他文化和旅游支出 | C91: 337
A92: 20703 | B92: 体育 | C92: 221
A93: 2070307 | B93: 体育场馆 | C93: 165
A94: 2070399 | B94: 其他体育支出 | C94: 56
A95: 20706 | B95: 新闻出版电影 | C95: 7
A96: 2070607 | B96: 电影 | C96: 7
A97: 20799 | B97: 其他文化旅游体育与传媒支出 | C97: 12
A98: 2079999 | B98: 其他文化旅游体育与传媒支出 | C98: 12
A99: 208 | B99: 社会保障和就业支出 | C99: 20221
A100: 20801 | B100: 人力资源和社会保障管理事务 | C100: 4056
A101: 2080101 | B101: 行政运行 | C101: 1022
A102: 2080102 | B102: 一般行政管理事务 | C102: 66
A103: 2080104 | B103: 综合业务管理 | C103: 121
A104: 2080112 | B104: 劳动人事争议调解仲裁 | C104: 5
A105: 2080116 | B105: 引进人才费用 | C105: 2840
A106: 2080199 | B106: 其他人力资源和社会保障管理事务支出 | C106: 1
A107: 20802 | B107: 民政管理事务 | C107: 1763
A108: 2080208 | B108: 基层政权建设和社区治理 | C108: 1740
A109: 2080299 | B109: 其他民政管理事务支出 | C109: 23
A110: 20805 | B110: 行政事业单位养老支出 | C110: 6565
A111: 2080501 | B111: 行政单位离退休 | C111: 531
A112: 2080502 | B112: 事业单位离退休 | C112: 1746
A113: 2080505 | B113: 机关事业单位基本养老保险缴费支出 | C113: 2342
A114: 2080506 | B114: 机关事业单位职业年金缴费支出 | C114: 307
A115: 2080507 | B115: 对机关事业单位基本养老保险基金的补助 | C115: 1579
A116: 2080599 | B116: 其他行政事业单位养老支出 | C116: 60
A117: 20807 | B117: 就业补助 | C117: 875
A118: 2080799 | B118: 其他就业补助支出 | C118: 875
A119: 20808 | B119: 抚恤 | C119: 1138
A120: 2080801 | B120: 死亡抚恤 | C120: 49
A121: 2080803 | B121: 在乡复员、退伍军人生活补助 | C121: 12
A122: 2080805 | B122: 义务兵优待 | C122: 459
A123: 2080899 | B123: 其他优抚支出 | C123: 618
A124: 20809 | B124: 退役安置 | C124: 1117
A125: 2080901 | B125: 退役士兵安置 | C125: 1005
A126: 2080902 | B126: 军队移交政府的离退休人员安置 | C126: 22
A127: 2080903 | B127: 军队移交政府离退休干部管理机构 | C127: 2
A128: 2080904 | B128: 退役士兵管理教育 | C128: 9
A129: 2080905 | B129: 军队转业干部安置 | C129: 75
A130: 2080999 | B130: 其他退役安置支出 | C130: 4
A131: 20810 | B131: 社会福利 | C131: 658
A132: 2081002 | B132: 老年福利 | C132: 511
A133: 2081006 | B133: 养老服务 | C133: 123
A134: 2081099 | B134: 其他社会福利支出 | C134: 24
A135: 20811 | B135: 残疾人事业 | C135: 63
A136: 2081104 | B136: 残疾人康复 | C136: 7
A137: 2081105 | B137: 残疾人就业 | C137: 1
A138: 2081107 | B138: 残疾人生活和护理补贴 | C138: 1
A139: 2081199 | B139: 其他残疾人事业支出 | C139: 53
A140: 20819 | B140: 最低生活保障 | C140: 360
A141: 2081902 | B141: 农村最低生活保障金支出 | C141: 360
A142: 20820 | B142: 临时救助 | C142: 3
A143: 2082001 | B143: 临时救助支出 | C143: 3
A144: 20825 | B144: 其他生活救助 | C144: 4
A145: 2082501 | B145: 其他城市生活救助 | C145: 4
A146: 20826 | B146: 财政对基本养老保险基金的补助 | C146: 2176
A147: 2082602 | B147: 财政对城乡居民基本养老保险基金的补助 | C147: 2176
A148: 20828 | B148: 退役军人管理事务 | C148: 56
A149: 2082802 | B149: 一般行政管理事务 | C149: 40
A150: 2082804 | B150: 拥军优属 | C150: 16
A151: 20830 | B151: 财政代缴社会保险费支出 | C151: 4
A152: 2083001 | B152: 财政代缴城乡居民基本养老保险费支出 | C152: 4
A153: 20899 | B153: 其他社会保障和就业支出 | C153: 1383
A154: 2089999 | B154: 其他社会保障和就业支出 | C154: 1383
A155: 210 | B155: 卫生健康支出 | C155: 9595
A156: 21001 | B156: 卫生健康管理事务 | C156: 38
A157: 2100199 | B157: 其他卫生健康管理事务支出 | C157: 38
A158: 21003 | B158: 基层医疗卫生机构 | C158: 365
A159: 2100302 | B159: 乡镇卫生院 | C159: 166
A160: 2100399 | B160: 其他基层医疗卫生机构支出 | C160: 199
A161: 21004 | B161: 公共卫生 | C161: 3546
A162: 2100402 | B162: 卫生监督机构 | C162: 3
A163: 2100408 | B163: 基本公共卫生服务 | C163: 1522
A164: 2100409 | B164: 重大公共卫生服务 | C164: 20
A165: 2100499 | B165: 其他公共卫生支出 | C165: 2002
A166: 21007 | B166: 计划生育事务 | C166: 1155
A167: 2100717 | B167: 计划生育服务 | C167: 1125
A168: 2100799 | B168: 其他计划生育事务支出 | C168: 31
A169: 21011 | B169: 行政事业单位医疗 | C169: 2434
A170: 2101101 | B170: 行政单位医疗 | C170: 139
A171: 2101102 | B171: 事业单位医疗 | C171: 1202
A172: 2101103 | B172: 公务员医疗补助 | C172: 1093
A173: 21014 | B173: 优抚对象医疗 | C173: 42
A174: 2101401 | B174: 优抚对象医疗补助 | C174: 33
A175: 2101499 | B175: 其他优抚对象医疗补助 | C175: 9
A176: 21099 | B176: 其他卫生健康支出 | C176: 2015
A177: 2109999 | B177: 其他卫生健康支出 | C177: 2015
A178: 211 | B178: 节能环保支出 | C178: 5495
A179: 21101 | B179: 环境保护管理事务 | C179: 247
A180: 2110102 | B180: 一般行政管理事务 | C180: 247
A181: 21102 | B181: 环境监测与监察 | C181: 255
A182: 2110299 | B182: 其他环境监测与监察支出 | C182: 255
A183: 21103 | B183: 污染防治 | C183: 4993
A184: 2110301 | B184: 大气 | C184: 1225
A185: 2110302 | B185: 水体 | C185: 3768
A186: 212 | B186: 城乡社区支出 | C186: 28686
A187: 21201 | B187: 城乡社区管理事务 | C187: 3024
A188: 2120101 | B188: 行政运行 | C188: 641
A189: 2120102 | B189: 一般行政管理事务 | C189: 329
A190: 2120104 | B190: 城管执法 | C190: 528
A191: 2120199 | B191: 其他城乡社区管理事务支出 | C191: 1525
A192: 21203 | B192: 城乡社区公共设施 | C192: 23215
A193: 2120399 | B193: 其他城乡社区公共设施支出 | C193: 23215
A194: 21205 | B194: 城乡社区环境卫生 | C194: 2446
A195: 2120501 | B195: 城乡社区环境卫生 | C195: 2446
A196: 213 | B196: 农林水支出 | C196: 4767
A197: 21301 | B197: 农业农村 | C197: 1824
A198: 2130102 | B198: 一般行政管理事务 | C198: 16
A199: 2130104 | B199: 事业运行 | C199: 483
A200: 2130108 | B200: 病虫害控制 | C200: 56
... 72 more rows

Sheet 附表1-4
A1: 附表1-4
A2: 一般公共预算本级基本支出表
C3: 单位：万元
A4: 科目编码 | B4: 科目名称 | C4: 预算数
A5: 501 | B5: 机关工资福利支出 | C5: 16499
A6: 50101 | B6: 工资奖金津补贴 | C6: 4230
A7: 50102 | B7: 社会保障缴费 | C7: 1799
A8: 50103 | B8: 住房公积金 | C8: 687
A9: 50199 | B9: 其他工资福利支出 | C9: 9783
A10: 502 | B10: 机关商品和服务支出 | C10: 16975
A11: 50201 | B11: 办公经费 | C11: 4890
A12: 50202 | B12: 会议费 | C12: 15
A13: 50203 | B13: 培训费 | C13: 118
A14: 50204 | B14: 专用材料购置费 | C14: 188
A15: 50205 | B15: 委托业务费 | C15: 3689
A16: 50206 | B16: 公务接待费 | C16: 166
A17: 50207 | B17: 因公出国（境）费用 | C17: 50
A18: 50208 | B18: 公务用车运行维护费 | C18: 168
A19: 50209 | B19: 维修（护）费 | C19: 937
A20: 50299 | B20: 其他商品和服务支出 | C20: 6756
A21: 503 | B21: 机关资本性支出（一） | C21: 13053
A22: 50301 | B22: 房屋建筑物购建 | C22: 5102
A23: 50302 | B23: 基础设施建设 | C23: 4810
A24: 50303 | B24: 公务用车购置 | C24: 0
A25: 50305 | B25: 土地征迁补偿和安置支出 | C25: 0
A26: 50306 | B26: 设备购置 | C26: 2721
A27: 50307 | B27: 大型修缮 | C27: 122
A28: 50399 | B28: 其他资本性支出 | C28: 298
A29: 505 | B29: 对事业单位经常性补助 | C29: 28853
A30: 50501 | B30: 工资福利支出 | C30: 21867
A31: 50502 | B31: 商品和服务支出 | C31: 6986
A32: 50599 | B32: 其他对事业单位补助 | C32: 0
A33: 506 | B33: 对事业单位资本性补助 | C33: 23696
A34: 50601 | B34: 资本性支出（一） | C34: 23696
A35: 50602 | B35: 资本性支出（二） | C35: 0
A36: 507 | B36: 对企业补助 | C36: 8521
A37: 50701 | B37: 费用补贴 | C37: 4496
A38: 50702 | B38: 利息补贴 | C38: 0
A39: 50799 | B39: 其他对企业补助 | C39: 4025
A40: 508 | B40: 对企业资本性支出 | C40: 10000
A41: 50803 | B41: 资本金注入（一） | C41: 10000
A42: 509 | B42: 对个人和家庭的补助 | C42: 19086
A43: 50901 | B43: 社会福利和救助 | C43: 9191
A44: 50902 | B44: 助学金 | C44: 9
A45: 50903 | B45: 个人农业生产补贴 | C45: 770
A46: 50905 | B46: 离退休费 | C46: 2247
A47: 50999 | B47: 其他对个人和家庭补助 | C47: 6869
A48: 510 | B48: 对社会保障基金补助 | C48: 2582
A49: 51002 | B49: 对社会保险基金补助 | C49: 2582
A50: 51003 | B50: 补充全国社会保障基金 | C50: 0
A51: 511 | B51: 债务利息及费用支出 | C51: 3101
A52: 51101 | B52: 国内债务付息 | C52: 3100
A53: 51102 | B53: 国外债务付息 | C53: 0
A54: 51103 | B54: 国内债务发行费用 | C54: 1
A55: 51104 | B55: 国外债务发行费用 | C55: 0
A56: 514 | B56: 预备费及预留 | C56: 2800
A57: 51401 | B57: 预备费 | C57: 2800
A58: 51402 | B58: 预留
A59: 599 | B59: 其他支出 | C59: 1979
A60: 59906 | B60: 赠与
A61: 59907 | B61: 国家赔偿费用支出
A62: 59908 | B62: 对民间非营利组织和群众性自治组织补贴 | C62: 1979
A63: 合 计 | C63: 147145

Sheet 附表1-5
A1: 附表1-5
A2: 一般公共预算税收返还、一般性和专项转移支付分地区 安排情况表
D3: 单位：万元 | F3: 12.11 | H3: 12.22 | N3: 1.2
A4: 地区名称 | B4: 税收返还 | C4: 一般性转移支付 | D4: 专项转移支付 | H4: 科目编码 | I4: 科目（单位）名称 | J4: 合计 | N4: 科目编码 | O4: 科目（单位）名称 | P4: 合计
A5: 市（县、镇）名1 | E5: 105429 | F5: 595734.14 | G5: =104401+13602 -> 118003 | H5: 201 | I5: 一般公共服务支出类合计 | J5: 596221.15 | K5: =H5-A5 ->  | L5: =J5-#REF! ->  | M5: 75943 | N5: 201 | O5: 一般公共服务支出类合计 | P5: 643048.95 | Q5: =N5-A5 ->  | R5: =P5-#REF! ->  | T5: 717759 | V5: 201 | W5: 一般公共服务支出类合计 | X5: 659380.53 | Y5: =#REF!-X5 ->  | Z5: =V5-A5 -> 
A6: 市（县、镇）名2
A7: 市（县、镇）名3
A8: 市（县、镇）名4
A9: 市（县、镇）名5
A10: ……
A11: 未分配数
A12: 合计 | H12: ="" ->  | I12: ="" ->  | J12: ="" ->  | N12: ="" ->  | O12: ="" ->  | P12: ="" ->  | X12: =X13+#REF!+#REF!+#REF!+#REF!+#REF!+#REF!+#REF!+#REF!+#REF!+#REF!+#REF!+#REF!+#REF!+#REF!+#REF!+#REF!+#REF!+#REF!+#REF!+#REF! ->  | Y12: =Y13+#REF!+#REF!+#REF!+#REF!+#REF!+#REF!+#REF!+#REF!+#REF!+#REF!+#REF!+#REF!+#REF!+#REF!+#REF!+#REF!+#REF!+#REF!+#REF!+#REF! -> 
V13: 232 | W13: 债务付息支出类合计 | X13: 19998.00 | Y13: =#REF!-X13 ->  | Z13: =V13-A13 -> 232
V14: 23203 | W14: 地方政府一般债务付息支出款合计 | X14: 19998.00 | Y14: =#REF!-X14 ->  | Z14: =V14-A14 -> 23203
A15: 备注：此表无数据 | V15: 2320301 | W15: 地方政府一般债券付息支出项合计 | X15: 19998.00 | Y15: =#REF!-X15 ->  | Z15: =V15-A15 -> 

Sheet 附表1-6
A1: 附表1-6
A2: 一般公共预算专项转移支付分项目安排情况表
B3: 单位：万元
A4: 项目名称 | B4: 预算数
A10: 合计
A11: 备注：此表无数据。

Sheet 附表1-7
A1: 附表1-7
A2: 政府性基金预算收入表
B3: 单位：万元
A4: 项目 | B4: 预算数
A5: 1.国有土地收益基金收入
A6: 2.农业土地开发资金收入 | B6: 380
A7: 3.国有土地使用权出让收入 | B7: 64093
A8: 4.城市基础设施配套费收入
A9: 5.大中型水库移民后期扶持基金收入
A10: 6.国家电影事业发展专项资金收入
A11: 7.污水处理费收入
A12: 8.彩票公益金收入
A13: 9.彩票销售机构业务费用
A14: 10.民航发展基金收入
A15: 11.旅游发展基金收入
A16: 12.其他政府性基金收入
A17: 13.专项债务对应项目专项收入
A18: 14.上级补助收入 | B18: 607
A19: 15.地方政府专项债务转贷收入
A20: 16.上年结余收入 | B20: 46830
A21: 合计 | B21: 111910

Sheet 附表1-8
A1: 附表1-8
A2: 政府性基金预算支出表
B3: 单位：万元 | D3: 12.11 | F3: 12.22 | L3: 1.2
A4: 项目 | B4: 预算数 | F4: 科目编码 | G4: 科目（单位）名称 | H4: 合计 | L4: 科目编码 | M4: 科目（单位）名称 | N4: 合计
A5: 一、本级支出 | C5: 105429 | D5: 595734.14 | E5: 118003 | F5: 201 | G5: 一般公共服务支出类合计 | H5: 596221.15 | J5: 596221.15 | K5: 75943 | L5: 201 | M5: 一般公共服务支出类合计 | N5: 643048.95 | P5: 643048.95 | R5: 717759 | T5: 201 | U5: 一般公共服务支出类合计 | V5: 659380.53 | W5: -659380.53
A6: 1.科学技术支出 | B6: 0
A7: 2.文化旅游体育与传媒支出 | B7: 5
A8: 3.社会保障和就业支出 | B8: 0
A9: 4.节能环保支出 | B9: 0
A10: 5.城乡社区支出 | B10: 57299
A11: 6.农林水支出 | B11: 145
A12: 7.交通运输支出 | B12: 0
A13: 8.资源勘探信息等支出 | B13: 0
A14: 9.金融支出 | B14: 0
A15: 10.其他支出 | B15: 37282
A16: 11.债务付息支出 | B16: 7100
A17: 12.债务发行费用支出 | B17: 80
A18: 13.债务还本支出 | B18: 10000
A19: 14.调出资金
A20: 15.年终结余
A21: 合计 | B21: 111910
T22: 232 | U22: 债务付息支出类合计 | V22: 19998.00 | W22: -19998 | X22: 232
T23: 23203 | U23: 地方政府一般债务付息支出款合计 | V23: 19998.00 | W23: -19998 | X23: 23203
T24: 2320301 | U24: 地方政府一般债券付息支出项合计 | V24: 19998.00 | W24: -19998 | X24: 2320301

Sheet 附表1-9
A1: 附表1-9
A2: 政府性基金预算本级支出表
C3: 单位：万元 | E3: 12.11 | G3: 12.22 | M3: 1.2
A4: 科目编码 | B4: 科目名称 | C4: 预算数 | G4: 科目编码 | H4: 科目（单位）名称 | I4: 合计 | M4: 科目编码 | N4: 科目（单位）名称 | O4: 合计
A5: 207 | B5: 文化旅游体育与传媒支出 | C5: 5 | D5: 105429 | E5: 595734.14 | F5: 118003 | G5: 201 | H5: 一般公共服务支出类合计 | I5: 596221.15 | J5: -6 | K5: 596216.15 | L5: 75943 | M5: 201 | N5: 一般公共服务支出类合计 | O5: 643048.95 | P5: -6 | Q5: 643043.95 | S5: 717759 | U5: 201 | V5: 一般公共服务支出类合计 | W5: 659380.53 | X5: -659375.53 | Y5: -6
A6: 20707 | B6: 国家电影事业发展专项资金安排的支出 | C6: 5
A7: 2070799 | B7: 其他国家电影事业发展专项资金支出 | C7: 5 | E7: 3922.87 | G7: 2010101 | H7: 行政运行项合计 | I7: 3922.87 | J7: -60698 | K7: 3917.87 | L7: 750 | M7: 2010101 | N7: 行政运行项合计 | O7: 4041.81 | P7: -60698 | Q7: 4036.81 | U7: 2010101 | V7: 行政运行项合计 | W7: 4680.94 | X7: -4675.94 | Y7: -60698
A8: 212 | B8: 城乡社区支出 | C8: 57299
A9: 21208 | B9: 国有土地使用权出让收入安排的支出 | C9: 53823 | U9: 232 | V9: 债务付息支出类合计 | W9: 19998.00 | X9: 33824.5 | Y9: -20976
A10: 2120801 | B10: 征地和拆迁补偿支出 | C10: 31400 | U10: 23203 | V10: 地方政府一般债务付息支出款合计 | W10: 19998.00 | X10: 11402 | Y10: -2097598
A11: 2120802 | B11: 土地开发支出 | C11: 4120 | U11: 2320301 | V11: 地方政府一般债券付息支出项合计 | W11: 19998.00 | X11: -15878 | Y11: 199499
A12: 2120803 | B12: 城市建设支出 | C12: 5554
A13: 2120804 | B13: 农村基础设施建设支出 | C13: 255
A14: 2120805 | B14: 补助被征地农民支出 | C14: 6395
A15: 2120814 | B15: 农业生产发展支出 | C15: 79
A16: 2120816 | B16: 农业农村生态环境支出 | C16: 2255
A17: 2120899 | B17: 其他国有土地使用权出让收入安排的支出 | C17: 3765
A18: 21210 | B18: 国有土地收益基金安排的支出 | C18: 380
A19: 2121002 | B19: 土地开发支出 | C19: 380
A20: 21213 | B20: 城市基础设施配套费安排的支出 | C20: 3096
A21: 2121399 | B21: 其他城市基础设施配套费安排的支出 | C21: 3096
A22: 213 | B22: 农林水支出 | C22: 145
A23: 21372 | B23: 大中型水库移民辅助扶持基金支出 | C23: 145
A24: 2137201 | B24: 移民补助 | C24: 54
A25: 2137202 | B25: 基础设施建设和经济发展 | C25: 91
A26: 229 | B26: 其他支出 | C26: 37282
A27: 22904 | B27: 其他政府性基金及对应专项债务收入安排的支出 | C27: 37188
A28: 2290402 | B28: 其他地方自行试点项目收益专项债券收入安排的支出 | C28: 37188
A29: 22960 | B29: 彩票公益金及对应专项债务收入安排的支出 | C29: 94
A30: 2296002 | B30: 用于社会福利的彩票公益金支出 | C30: 70
A31: 2296003 | B31: 用于体育事业的彩票公益金支出 | C31: 8
A32: 2296006 | B32: 用于残疾人事业的彩票公益金支出 | C32: 16
A33: 232 | B33: 债务付息支出 | C33: 7100
A34: 23204 | B34: 地方政府专项债务付息支出 | C34: 7100
A35: 2320411 | B35: 国有土地使用权出让金债务付息支出 | C35: 1043
A36: 2320432 | B36: 政府收费公路专项债券付息支出 | C36: 711
A37: 2320498 | B37: 其他地方自行试点项目收益专项债券付息支出 | C37: 5346
A38: 233 | B38: 债务发行费用支出 | C38: 80
A39: 23304 | B39: 地方政府专项债务发行费用支出 | C39: 80
A40: 2330411 | B40: 国有土地使用权出让金债务发行费用支出 | C40: 0
A41: 2330432 | B41: 政府收费公路专项债券发行费用支出 | C41: 0
A42: 2330498 | B42: 其他地方自行试点项目收益专项债券发行费用支出 | C42: 80
A43: 合计 | C43: 101910

Sheet 附表1-10
A1: 附表1-10
A2: 政府性基金预算专项转移支付分地区安排情况表
B3: 单位：万元 | D3: 12.11 | F3: 12.22 | L3: 1.2
A4: 地区名称 | B4: 预算数 | F4: 科目编码 | G4: 科目（单位）名称 | H4: 合计 | L4: 科目编码 | M4: 科目（单位）名称 | N4: 合计
A5: 市（县、镇）名1 | C5: 105429 | D5: 595734.14 | E5: =104401+13602 -> 118003 | F5: 201 | G5: 一般公共服务支出类合计 | H5: 596221.15 | I5: =F5-A5 ->  | J5: =H5-#REF! ->  | K5: 75943 | L5: 201 | M5: 一般公共服务支出类合计 | N5: 643048.95 | O5: =L5-A5 ->  | P5: =N5-#REF! ->  | R5: 717759 | T5: 201 | U5: 一般公共服务支出类合计 | V5: 659380.53 | W5: =#REF!-V5 ->  | X5: =T5-A5 -> 
A6: 市（县、镇）名2
A7: 市（县、镇）名3
A8: 市（县、镇）名4
A9: 市（县、镇）名5
A10: ……
A11: 未分配数
A12: 合计 | F12: ="" ->  | G12: ="" ->  | H12: ="" ->  | L12: ="" ->  | M12: ="" ->  | N12: ="" ->  | V12: =V13+#REF!+#REF!+#REF!+#REF!+#REF!+#REF!+#REF!+#REF!+#REF!+#REF!+#REF!+#REF!+#REF!+#REF!+#REF!+#REF!+#REF!+#REF!+#REF!+#REF! ->  | W12: =W13+#REF!+#REF!+#REF!+#REF!+#REF!+#REF!+#REF!+#REF!+#REF!+#REF!+#REF!+#REF!+#REF!+#REF!+#REF!+#REF!+#REF!+#REF!+#REF!+#REF! -> 
T13: 232 | U13: 债务付息支出类合计 | V13: 19998.00 | W13: =#REF!-V13 ->  | X13: =T13-A13 -> 232
T14: 23203 | U14: 地方政府一般债务付息支出款合计 | V14: 19998.00 | W14: =#REF!-V14 ->  | X14: =T14-A14 -> 23203
A15: 备注：此表无数据 | T15: 2320301 | U15: 地方政府一般债券付息支出项合计 | V15: 19998.00 | W15: =#REF!-V15 ->  | X15: =T15-A15 -> 

Sheet 附表1-11
A1: 附表1-11
A2: 政府性基金预算专项转移支付分项目安排情况表
B3: 单位：万元
A4: 项目名称 | B4: 预算数
E6: 988753
A8: 合计
A9: 备注：此表无数据。 | B9: .

Sheet 附表1-12
A1: 附表1-12
A2: 国有资本经营预算收入表
B3: 单位：万元
A4: 项目 | B4: 预算数
A5: 一、利润收入
A6: 二、股利、股息收入
A7: 三、产权转让收入
A8: 四、清算收入
A9: 五、其他国有资本经营预算收入
A10: 六、上级补助收入 | B10: 13
A11: 七、上年结余收入
A12: 合计 | B12: 13

Sheet 附表1-13
A1: 附表1-13
A2: 国有资本经营预算支出表
B3: 单位：万元 | D3: 12.11 | F3: 12.22 | L3: 1.2
A4: 项目 | B4: 预算数 | F4: 科目编码 | G4: 科目（单位）名称 | H4: 合计 | L4: 科目编码 | M4: 科目（单位）名称 | N4: 合计
A5: 一、本级支出 | C5: 105429 | D5: 595734.14 | E5: 118003 | F5: 201 | G5: 一般公共服务支出类合计 | H5: 596221.15 | J5: 596221.15 | K5: 75943 | L5: 201 | M5: 一般公共服务支出类合计 | N5: 643048.95 | P5: 643048.95 | R5: 717759 | T5: 201 | U5: 一般公共服务支出类合计 | V5: 659380.53 | W5: -659380.53
A6: 1、社会保障和就业
A7: 2、国有资本经营预算支出
A8: 解决历史遗留问题及改革成本支出 | B8: 13
A9: 国有企业资本金注入
A10: 公益性设施投资支出
A11: 国有企业政策性补贴
A12: 金融国有资本经营预算支出
A13: 其他国有资本经营预算支出
A14: 二、对下转移支付 | C14: 105429 | D14: 595734.14 | E14: 118003 | F14: 201 | G14: 一般公共服务支出类合计 | H14: 596221.15 | J14: 596221 | K14: 75943 | L14: 201 | M14: 一般公共服务支出类合计 | N14: 643048.95 | P14: 643049 | R14: 717759 | T14: 201 | U14: 一般公共服务支出类合计 | V14: 659380.53 | W14: -659380.53
A15: 上解支出
A16: 调出资金
A17: 年终结余
A18: 合计 | B18: 13

Sheet 附表1-14
A1: 附表1-14
A2: 国有资本经营预算本级支出表
C3: 单位：万元 | E3: 12.11 | G3: 12.22 | M3: 1.2
A4: 科目编码 | B4: 科目名称 | C4: 预算数 | G4: 科目编码 | H4: 科目（单位）名称 | I4: 合计 | M4: 科目编码 | N4: 科目（单位）名称 | O4: 合计
A5: 223 | B5: 国有资本经营预算支出 | C5: 13 | D5: 105429 | E5: 595734.14 | F5: 118003 | G5: 201 | H5: 一般公共服务支出类合计 | I5: 596221.15 | J5: (22) | K5: 596218 | L5: 75943 | M5: 201 | N5: 一般公共服务支出类合计 | O5: 643048.95 | P5: (22) | Q5: 643046 | S5: 717759 | U5: 201 | V5: 一般公共服务支出类合计 | W5: 659380.53 | X5: -659377.53 | Y5: -22
A6: 22301 | B6: 解决历史遗留问题及改革成本支出 | C6: 13 | E6: 7616.62 | G6: 20101 | H6: 人大事务款合计 | I6: 7616.62 | J6: -2200 | K6: 7613.62 | M6: 20101 | N6: 人大事务款合计 | O6: 7749.58 | P6: -2200 | Q6: 7746.58 | U6: 20101 | V6: 人大事务款合计 | W6: 8475.47 | X6: -8472.47 | Y6: -2200
A7: 2230105 | B7: 国有企业退休人员社会化管理补助支出 | C7: 13 | E7: 3922.87 | G7: 2010101 | H7: 行政运行项合计 | I7: 3922.87 | J7: -220004 | K7: 3919.87 | L7: 750 | M7: 2010101 | N7: 行政运行项合计 | O7: 4041.81 | P7: -220004 | Q7: 4038.81 | U7: 2010101 | V7: 行政运行项合计 | W7: 4680.94 | X7: -4677.94 | Y7: -220004
A8: 合计 | C8: 13

Sheet 附表1-15
A1: 附表1-15
A2: 国有资本经营预算专项转移支付分地区安排情况表
B3: 单位：万元 | D3: 12.11 | F3: 12.22 | L3: 1.2
A4: 地区名称 | B4: 预算数 | F4: 科目编码 | G4: 科目（单位）名称 | H4: 合计 | L4: 科目编码 | M4: 科目（单位）名称 | N4: 合计
A5: 市（县、镇）名1 | C5: 105429 | D5: 595734.14 | E5: =104401+13602 -> 118003 | F5: 201 | G5: 一般公共服务支出类合计 | H5: 596221.15 | I5: =F5-A5 ->  | J5: =H5-#REF! ->  | K5: 75943 | L5: 201 | M5: 一般公共服务支出类合计 | N5: 643048.95 | O5: =L5-A5 ->  | P5: =N5-#REF! ->  | R5: 717759 | T5: 201 | U5: 一般公共服务支出类合计 | V5: 659380.53 | W5: =#REF!-V5 ->  | X5: =T5-A5 -> 
A6: 市（县、镇）名2
A7: 市（县、镇）名3
A8: 市（县、镇）名4
A9: 市（县、镇）名5
A10: ……
A11: 未分配数
A12: 合计 | F12: ="" ->  | G12: ="" ->  | H12: ="" ->  | L12: ="" ->  | M12: ="" ->  | N12: ="" ->  | V12: =V13+#REF!+#REF!+#REF!+#REF!+#REF!+#REF!+#REF!+#REF!+#REF!+#REF!+#REF!+#REF!+#REF!+#REF!+#REF!+#REF!+#REF!+#REF!+#REF!+#REF! ->  | W12: =W13+#REF!+#REF!+#REF!+#REF!+#REF!+#REF!+#REF!+#REF!+#REF!+#REF!+#REF!+#REF!+#REF!+#REF!+#REF!+#REF!+#REF!+#REF!+#REF!+#REF! -> 
T13: 232 | U13: 债务付息支出类合计 | V13: 19998.00 | W13: =#REF!-V13 ->  | X13: =T13-A13 -> 232
T14: 23203 | U14: 地方政府一般债务付息支出款合计 | V14: 19998.00 | W14: =#REF!-V14 ->  | X14: =T14-A14 -> 23203
T15: 2320301 | U15: 地方政府一般债券付息支出项合计 | V15: 19998.00 | W15: =#REF!-V15 ->  | X15: =T15-A15 -> 2320301
A16: 备注：此表无数据

Sheet 附表1-16
A1: 附表1-16
A2: 国有资本经营预算专项转移支付分项目安排情况表
B3: 单位：万元
A4: 项目名称 | B4: 预算数
E6: 988753
E7: 822672
A8: 合计
A13: 备注：此表无数据

Sheet 附表1-17
A1: 附表1-17
A2: 社会保险基金预算收入表
C3: 单位：万元
A4: 科目编码 | B4: 科目名称 | C4: 预算数
A5: 102 | B5: 社会保险基金收入 | C5: 8011
A6: 10210 | B6: 城乡居民基本养老保险基金收入 | C6: 3855
A7: 1021001 | B7: 保险费收入 | C7: 456
A8: 1021002 | B8: 财政补贴收入 | C8: 3220
A9: 1021003 | B9: 利息收入 | C9: 41
A10: 1021004 | B10: 委托投资收益 | C10: 132
A11: 1021099 | B11: 其他收入 | C11: 1
A12: 1101604 | B12: 转移收入 | C12: 5
A13: 10211 | B13: 机关事业养老保险基金收入 | C13: 4156
A14: 1021101 | B14: 保险费收入 | C14: 2533
A15: 1021102 | B15: 财政补贴收入 | C15: 1620
A16: 1021103 | B16: 利息收入 | C16: 3
A17: 110 | B17: 转移性收入 | C17: 7675
A18: 11008 | B18: 上年结余收入 | C18: 7675
A19: 1100803 | B19: 社会保险基金预算上年结余收入 | C19: 7675
A20: 合计 | C20: 15686

Sheet 附表1-18
A1: 附表1-18
A2: 社会保险基金预算支出表
C3: 单位：万元 | E3: 12.11 | G3: 12.22 | M3: 1.2
A4: 科目编码 | B4: 科目名称 | C4: 预算数 | G4: 科目编码 | H4: 科目（单位）名称 | I4: 合计 | M4: 科目编码 | N4: 科目（单位）名称 | O4: 合计
A5: 209 | B5: 社会保险基金支出 | C5: 7153 | D5: 105429 | E5: 595734.14 | F5: 118003 | G5: 201 | H5: 一般公共服务支出类合计 | I5: 596221.15 | J5: (8) | K5: 589068 | L5: 75943 | M5: 201 | N5: 一般公共服务支出类合计 | O5: 643048.95 | P5: (8) | Q5: 635896 | S5: 717759 | U5: 201 | V5: 一般公共服务支出类合计 | W5: 659380.53 | X5: -652227.53 | Y5: -8
A6: 20910 | B6: 城乡居民基本养老保险基金支出 | C6: 3320 | E6: 7617 | G6: 20101 | H6: 人大事务款合计 | I6: 7616.62 | J6: (809) | K6: 4297 | M6: 20101 | N6: 人大事务款合计 | O6: 7749.58 | P6: (809) | Q6: 4430 | U6: 20101 | V6: 人大事务款合计 | W6: 8475.47 | X6: -5155.47 | Y6: -809
A7: 2091001 | B7: 基础养老金支出 | C7: 3119 | E7: 3923 | G7: 2010101 | H7: 行政运行项合计 | I7: 3922.87 | J7: (80900) | K7: 804 | L7: 750 | M7: 2010101 | N7: 行政运行项合计 | O7: 4041.81 | P7: (80900) | Q7: 923 | U7: 2010101 | V7: 行政运行项合计 | W7: 4680.94 | X7: -1561.94 | Y7: -80900
A8: 2091002 | B8: 个人账户养老金支出 | C8: 150 | E8: 136 | G8: 2010199 | H8: 其他人大事务支出项合计 | I8: 135.60 | J8: (80803) | K8: -14 | M8: 2010199 | N8: 其他人大事务支出项合计 | O8: 135.60 | P8: (80803) | Q8: -14 | U8: 2010199 | V8: 其他人大事务支出项合计 | W8: 135.60 | X8: 14.4 | Y8: -80803
A9: 2091003 | B9: 丧葬抚恤补助支出 | C9: 48 | E9: 7617 | G9: 20101 | H9: 人大事务款合计 | I9: 7616.62 | J9: (2070902) | K9: 7569 | M9: 20101 | N9: 人大事务款合计 | O9: 7749.58 | P9: (2070902) | Q9: 7702 | U9: 20101 | V9: 人大事务款合计 | W9: 8475.47 | X9: -8427.47 | Y9: -2070902
A10: 2091099 | B10: 其他城乡居民基本养老保险基金支出 | C10: 3 | E10: 3923 | G10: 2010101 | H10: 行政运行项合计 | I10: 3922.87 | J10: (80998) | K10: 3920 | L10: 750 | M10: 2010101 | N10: 行政运行项合计 | O10: 4041.81 | P10: (80998) | Q10: 4039 | U10: 2010101 | V10: 行政运行项合计 | W10: 4680.94 | X10: -4677.94 | Y10: -80998
A11: 20911 | B11: 机关事业基本养老保险基金支出 | C11: 3833 | E11: 136 | G11: 2010199 | H11: 其他人大事务支出项合计 | I11: 135.60 | J11: 1989288 | K11: -3697 | M11: 2010199 | N11: 其他人大事务支出项合计 | O11: 135.60 | P11: 1989288 | Q11: -3697 | U11: 2010199 | V11: 其他人大事务支出项合计 | W11: 135.60 | X11: 3697.4 | Y11: 1989288
A12: 2091101 | B12: 基本养老金支出 | C12: 3783 | E12: 7617 | G12: 20101 | H12: 人大事务款合计 | I12: 7616.62 | J12: (2071000) | K12: 3834 | M12: 20101 | N12: 人大事务款合计 | O12: 7749.58 | P12: (2071000) | Q12: 3967 | U12: 20101 | V12: 人大事务款合计 | W12: 8475.47 | X12: -4692.47 | Y12: -2071000
A13: 2091199 | B13: 其他机关事业单位基本养老保险基金支出 | C13: 50 | E13: 3923 | G13: 2010101 | H13: 行政运行项合计 | I13: 3922.87 | J13: (81098) | K13: 3873 | L13: 750 | M13: 2010101 | N13: 行政运行项合计 | O13: 4041.81 | P13: (81098) | Q13: 3992 | U13: 2010101 | V13: 行政运行项合计 | W13: 4680.94 | X13: -4630.94 | Y13: -81098
A14: 230 | B14: 转移性支出 | C14: 8533 | E14: 136 | G14: 2010199 | H14: 其他人大事务支出项合计 | I14: 135.60 | J14: 2009969 | K14: -8397 | M14: 2010199 | N14: 其他人大事务支出项合计 | O14: 135.60 | P14: 2009969 | Q14: -8397 | U14: 2010199 | V14: 其他人大事务支出项合计 | W14: 135.60 | X14: 8397.4 | Y14: 2009969
A15: 23009 | B15: 年终结余 | C15: 8533
A16: 2300915 | B16: 城乡居民基本养老保险基金年终结余 | C16: 8210
A17: 2301402 | B17: 机关事业单位基本养老保险基金年终结余 | C17: 323
A18: 合计 | C18: 15686

Sheet 附表2-1
A1: 高新区2023年地方政府债务限额及余额预算情况表
G2: 单位：亿元
A3: 地 区 | B3: 2023年债务限额 | E3: 2023年债务余额预计执行数
C4: 一般债务 | D4: 专项债务 | F4: 一般债务 | G4: 专项债务
A5: 公 式 | B5: A=B+C | C5: B | D5: C | E5: D=E+F | F5: E | G5: F
A6: 高新区 | B6: 24.49 | C6: 9.64 | D6: 14.85 | E6: 24.25 | F6: 9.40 | G6: 14.85

Sheet 附表2-2
A2: 高新区2023年地方政府一般债务余额情况表
C3: 单位：亿元
A4: 项 目 | B4: 预算数 | C4: 执行数
A5: 一、2022年末地方政府一般债务余额实际数 | B5: 9.64 | C5: 9.64
A6: 二、2023年末地方政府一般债务余额限额 | B6: 9.64 | C6: 9.64
A7: 三、2023年地方政府一般债务发行额 | B7: 2.16 | C7: 2.16
A8: 中央转贷地方的国际金融组织和外国政府贷款
A9: 2023年地方政府一般债券发行额 | B9: 2.16 | C9: 2.16
A10: 四、2023年地方政府一般债务还本额 | B10: 2.40 | C10: 2.40
A11: 五、2023年末地方政府一般债务余额预计执行数 | B11: 9.40 | C11: 9.40
A12: 六、2024年地方财政赤字
A13: 七、2024年地方政府一般债务余额限额

Sheet 附表2-3
A2: 高新区2023年地方政府专项债务余额情况表
C3: 单位：亿元
A4: 项 目 | B4: 预算数 | C4: 执行数
A5: 一、2022年末地方政府专项债务余额实际数 | B5: 8.51 | C5: 8.51
A6: 二、2023年末地方政府专项债务余额限额 | B6: 14.85 | C6: 14.85
A7: 三、2023年地方政府专项债务发行额 | B7: 6.34 | C7: 6.34
A8: 四、2023年地方政府专项债务还本额 | B8: 0.00 | C8: 0.00
A9: 五、2023年末地方政府专项债务余额预计执行数 | B9: 14.85 | C9: 14.85
A10: 六、2024年地方政府专项债务新增限额
A11: 七、2024年末地方政府专项债务余额限额

Sheet 附表2-4
A2: 高新区2024年地方政府债券发行及还本付息情况表
D3: 单位：亿元
A4: 项 目 | B4: 公式 | C4: 本地区 | D4: 本级
A5: 一、2023年发行预计执行数 | B5: A=B+D | C5: =C6+C8 -> 8.50
A6: （一）一般债券 | B6: B | C6: 2.16
A7: 其中：再融资债券 | B7: C | C7: 2.16
A8: （二）专项债券 | B8: D | C8: 6.34
A9: 其中：再融资债券 | B9: E | C9: 0.00
A10: 二、2023年还本预计执行数 | B10: F=G+H | C10: 2.40
A11: （一）一般债券 | B11: G | C11: 2.40
A12: （二）专项债券 | B12: H | C12: 0.00
A13: 三、2023年付息预计执行数 | B13: I=J+K | C13: =C14+C15 -> 0.74
A14: （一）一般债券 | B14: J | C14: 0.33
A15: （二）专项债券 | B15: K | C15: 0.41
A16: 四、2024年还本预算数 | B16: L=M+O | C16: 1.00
A17: （一）一般债券 | B17: M | C17: 0.00
A18: 其中：再融资 | C18: 0.00
A19: 财政预算安排 | B19: N | C19: 0.00
A20: （二）专项债券 | B20: O | C20: 1.00
A21: 其中：再融资 | C21: 0.90
A22: 财政预算安排 | B22: P | C22: 0.10
A23: 五、2024年付息预算数 | B23: Q=R+S | C23: =C24+C25 -> 1.03
A24: （一）一般债券 | B24: R | C24: 0.31
A25: （二）专项债券 | B25: S | C25: 0.72

Sheet 附表2-5
A2: 高新区2024年地方政府债务限额提前下达情况表
A3: 单位：亿元
A4: 项目 | B4: 公 式 | C4: 本地区 | D4: 本级 | E4: 下级
A5: 一：2023年地方政府债务限额 | B5: A=B+C | C5: 24.49
A6: 其中： 一般债务限额 | B6: B | C6: 9.64
A7: 专项债务限额 | B7: C | C7: 14.85
A8: 二：提前下达的2024年地方政府债务新增限额 | B8: D=E+F
A9: 其中： 一般债务限额 | B9: E
A10: 专项债务限额 | B10: F
A11: 注：本表反映本地区及本级年初预算中列示的地方政府债务限额情况，由县级以上地方各级财政部门在同级人大常委会批准年度预算后二十日内公开。

Sheet 附表2-6
B2: 高新区2024年年初新增地方政府债券资金安排表
F3: 单位：亿元
A4: 序号 | B4: 项目名称 | C4: 项目领域 | D4: 项目主管部门 | E4: 债券性质 | F4: 债券规模
A5: 1
A6: 此表无数据

Sheet 附表2-7
A2: 高新区2024年地方政府再融资债券分月发行安排表
B3: 单位：亿元
A4: 时间 | B4: 再融资债券计划发行规模
A5: 合计 | B5: 0.9
A6: 1月
A7: 2月
A8: 3月
A9: 4月
A10: 5月
A11: 6月 | B11: 0.9
A12: 7月
A13: 8月
A14: 9月
A15: 10月
A16: 11月
A17: 12月
